Cogmind - Beta 14 @@@ ROGUE MODE // 2024.08.09 @ 13:05:47 Player: Zaros426 Result: Destroyed by S-43 Plague with Heavy Machine Gun Performance ------------- Evolutions (7) 3500 Regions Visited (14) 2800 Robots Destroyed (135) 675 Value Destroyed (5746) 5746 Prototype IDs (13) 260 Alien Tech Used (0) 0 Bonus (2677) 2677 TOTAL SCORE: 15658 Bonus ------- High Alert Combat Kills 581 Follower Combat Kills 614 Entered Garrisons 600 Used RIF Installer 500 Entered DSFs 500 Friendly Fire -118 Cogmind --------- Core Integrity 0/1300 Matter 126/300 Energy 99/100 System Corruption 0% Temperature Cool (0) Movement Core (50) Location -3/Garrison Parts ------- > --- POWER (2) -------- (None) > --- PROPULSION (7) --- (None) > --- UTILITY (9) ------ Advanced Signal Interpreter Melee Analysis Suite Improved System Guard Improved System Guard > --- WEAPON (3) ------- (None) > --- INVENTORY (5) ---- Relay Coupler [Brawler] (32) Relay Coupler [Specialist] (20) Peak State ------------ > --- POWER ------------ Light Particle Reactor > --- PROPULSION ------- Antigrav System Nuclear Pulse Array Field Propulsion Array Impulse Thruster Array > --- UTILITY ---------- Advanced Power Amplifier Advanced Signal Interpreter Melee Analysis Suite Nanoactuators Improved Phase Shifter System Shield Improved System Guard Improved System Guard > --- WEAPON ----------- Improved Plasma Cutter Power Maul Enhanced Force Lance > --- INVENTORY -------- Antigrav System Improved Remote Datajack [Rating: 121] Favorites ----------- Power Ion Engine Engine Ion Engine Power Core Nuclear Core Reactor Light Particle Reactor Propulsion Light Treads Treads Light Treads Leg Carbon-fiber Leg Wheel Compact Wheel Hover Unit Improved Antigrav System Flight Unit Xenon Bombardment Thruster Utility High-capacity Storage Unit Device Improved Heat Sink Storage High-capacity Storage Unit Processor Advanced Targeting Computer Hackware System Shield Protection Improved Light Armor Plating Weapon Gatling Laser Energy Gun Gatling Laser Energy Cannon Particle Cannon Ballistic Gun Assault Rifle Ballistic Cannon Mini Assault Cannon Launcher Heavy Rocket Launcher Special Weapon Remote Datajack Impact Weapon Great Maul Slashing Weapon Katana Piercing Weapon Enhanced Force Lance Build | -11 -10 -9 -8 -7 -7 -7 -6 -5 -5 -4 -4 -4 -3 -3 ------- Run | Yrd Mat Mat Mat Fac Sto Gar Fac Fac DSF Fac Gar Ext Res Gar Slots Evolved 14 | . . 2 2 2 . . 2 2 . 2 . . 2 . Power 1 | . . . . . . . . . . 1 . . . . Propulsion 5 | . . . 1 1 . . . 2 . . . . 1 . Utility 7 | . . 2 1 1 . . 1 . . 1 . . 1 . Weapon 1 | . . . . . . . 1 . . . . . . . Parts Attached 230 | 7 8 17 20 2 45 12 40 . 36 3 1 12 24 3 Power 19 | 1 2 2 2 . 3 1 3 . 1 . . 1 3 . Engine 11 | 1 2 2 1 . 2 1 1 . . . . . 1 . Core 7 | . . . 1 . 1 . 2 . 1 . . 1 1 . Reactor 1 | . . . . . . . . . . . . . 1 . Propulsion 60 | 2 . 2 7 1 16 1 5 . 14 1 . 2 7 2 Treads 25 | 2 . 2 7 1 12 . . . . . . 1 . . Leg 4 | . . . . . . 1 3 . . . . . . . Wheel 6 | . . . . . 4 . 2 . . . . . . . Hover 6 | . . . . . . . . . . . . 1 4 1 Flight 19 | . . . . . . . . . 14 1 . . 3 1 Utility 85 | 2 5 3 8 1 11 2 21 . 12 2 . 7 11 . Device 51 | 1 4 2 4 1 8 1 12 . 8 . . 4 6 . Storage 3 | 1 1 . . . . . . . 1 . . . . . Processor 9 | . . . 2 . . . . . 1 . . 1 5 . Hackware 4 | . . . . . . . 4 . . . . . . . Protection 18 | . . 1 2 . 3 1 5 . 2 2 . 2 . . Artifact . | . . . . . . . . . . . . . . . Weapon 66 | 2 1 10 3 . 15 8 11 . 9 . 1 2 3 1 Energy Gun 18 | 1 1 1 . . 6 4 5 . . . . . . . Energy Cannon 10 | . . 2 2 . 1 . . . 5 . . . . . Ballistic Gun 10 | 1 . 5 . . 4 . . . . . . . . . Ballistic Cannon 1 | . . . . . 1 . . . . . . . . . Launcher 6 | . . . . . 1 1 1 . 3 . . . . . Special Weapon 8 | . . . . . . . 4 . . . 1 . 2 1 Impact Weapon 11 | . . 2 1 . 2 3 1 . 1 . . 1 . . Slashing Weapon 1 | . . . . . . . . . . . . 1 . . Piercing Weapon 1 | . . . . . . . . . . . . . 1 . Special Melee Weapon . | . . . . . . . . . . . . . . . Unidentified Prototypes 5 | . . 1 . . 3 . . . . . . . 1 . Parts Lost 95 | . 1 1 2 . 16 3 12 . 31 . 6 3 9 11 Power 9 | . . 1 . . 2 1 1 . 1 . 1 1 . 1 Propulsion 39 | . . . 1 . 8 1 4 . 14 . 2 . 4 5 Utility 26 | . . . 1 . 3 . 2 . 10 . 3 1 3 3 Weapon 21 | . 1 . . . 3 1 5 . 6 . . 1 2 2 Highest Loss Streak 15 | . 1 1 1 . 6 1 4 . 14 . 5 2 5 15 To Critical Strikes . | . . . . . . . . . . . . . . . Average Slot Usage (%) 89 | . 98 95 97 100 95 99 95 . 74 48 35 28 58 46 Engine 4 | . 14 11 . . 3 5 2 . . 6 5 . . . Core 2 | . . . 8 7 3 1 2 . . . . 1 . . Treads 18 | . 28 22 26 30 24 25 9 . . . . 1 . . Leg 3 | . . . . . . 4 12 . 2 . . . . . Wheel 1 | . . . . . 3 . 3 . 3 . . . . . Flight 1 | . . . . . . . . . 18 10 6 . 6 8 Device 15 | . 25 25 19 15 14 7 17 . 7 5 1 6 8 6 Storage 6 | . 2 11 9 7 7 7 6 . 3 . . . . . Processor 8 | . . . 10 15 15 15 6 . 4 5 3 . 15 19 Hackware 2 | . . . . . . . 3 . 16 10 8 5 4 3 Protection 7 | . . 4 3 7 6 14 11 . 1 10 8 5 2 . Energy Gun 7 | . 14 2 . . 9 10 13 . . . . . . . Energy Cannon 3 | . . 6 16 15 1 . . . 8 . . . . . Ballistic Gun 3 | . 11 10 . . 3 . . . . . . . . . Impact Weapon 1 | . . 1 . . . 3 1 . . . . 2 4 . Peak Build Rating 121 | 7 7 15 26 27 42 41 60 38 71 39 41 47 121 109 Average Rating 33 | 5 6 12 22 26 34 37 50 38 55 33 27 29 76 75 On Entrance 27 | . 7 6 14 25 27 38 37 38 38 18 37 9 22 98 Naked Turns . | . . . . . . . . . . . . . . . Heaviest Build 114 | 15 50 61 63 62 66 65 78 48 114 9 10 36 40 30 Greatest Support 82 | 40 40 40 60 80 82 82 62 16 22 10 10 23 56 44 Greatest Overweight (x) 7 | 2 1 1 1 . 6 1 4 2 7 . 1 1 1 . Average Overweight (x) . | . . 1 . . . . 2 2 2 . . . . . Largest Inventory Capacity 25 | 8 20 20 20 20 20 20 20 20 25 5 5 5 5 5 Average Capacity 17 | 7 7 20 20 20 20 20 20 20 19 5 5 5 5 5 Most Carried 25 | 1 8 14 20 18 20 20 20 19 25 5 5 5 5 2 Average Carried 14 | . 4 9 17 17 17 18 19 19 18 4 4 3 3 1 Final Capacity 20 | 8 20 20 20 20 20 20 20 20 5 5 5 5 5 5 Final Carried 20 | 1 8 14 19 17 20 20 19 19 5 5 5 4 2 2 Class Distribution -------------------- 47% | Scavenger-Mutant 26% | Mutant 10% | Scavenger-Tank 4% | Commander-Mutant 4% | Hacker-Mutant 3% | Hacker-Gunner Dominant Class ---------------- Mutant | -10/Materials Scavenger-Mutant | -9/Materials Scavenger-Mutant | -8/Materials Scavenger-Mutant | -7/Factory Scavenger-Mutant | -7/Storage Scavenger-Mutant | -7/Garrison Scavenger-Tank | -6/Factory Scavenger-Tank | -5/Factory Hacker-Gunner | -5/DSF Hacker-Sprinter | -4/Factory Mutant | -4/Garrison Mutant | -4/Extension Mutant | -3/Research Mutant | -3/Garrison Resources | -11 -10 -9 -8 -7 -7 -7 -6 -5 -5 -4 -4 -4 -3 -3 ----------- Run | Yrd Mat Mat Mat Fac Sto Gar Fac Fac DSF Fac Gar Ext Res Gar Matter Collected 3070 | 348 39 348 297 . 929 134 461 . 118 . 109 254 . 33 Remotely . | . . . . . . . . . . . . . . . Salvage Created 5745 | 223 224 395 1155 . 1419 526 1473 . 297 . . . . 33 Parts 257 | 13 25 25 55 . 78 18 30 . 10 . . . . 3 Haulers Intercepted 7 | . . 2 1 . 3 . 1 . . . . . . . Recyclers Shooed 7 | . . 3 . . 2 . 2 . . . . . . . Parts Field Recycled . | . . . . . . . . . . . . . . . Retrieved Matter . | . . . . . . . . . . . . . . . Parts Self-Destructed . | . . . . . . . . . . . . . . . Prevented . | . . . . . . . . . . . . . . . Kills | -11 -10 -9 -8 -7 -7 -7 -6 -5 -5 -4 -4 -4 -3 -3 ------- Run | Yrd Mat Mat Mat Fac Sto Gar Fac Fac DSF Fac Gar Ext Res Gar Combat Hostiles Destroyed 91 | . 6 6 17 . 26 12 16 . 7 . . . . 1 Melee 2 | . . . . . . . 1 . . . . . . 1 Guns 58 | . 6 4 . . 22 12 14 . . . . . . . Cannons 21 | . . 2 16 . 3 . . . . . . . . . AOE 7 | . . . . . . . . . 7 . . . . . Classes Destroyed 13 | 3 4 2 . . 2 1 . . 1 . . . . . Worker 11 | 2 1 . . . 6 . 2 . . . . . . . Builder 3 | . . . . . 2 . 1 . . . . . . . Tunneler 5 | 5 . . . . . . . . . . . . . . Hauler 7 | . . 2 1 . 3 . 1 . . . . . . . Recycler 9 | 1 . . 2 . 1 . 5 . . . . . . . Operator 2 | . 1 . . . 1 . . . . . . . . . Watcher 7 | . 1 1 2 . 2 1 . . . . . . . . Swarmer 10 | . 2 . . . 4 3 . . . . . . . 1 Grunt 53 | . 4 4 14 . 8 8 10 . 5 . . . . . Sentry 14 | . . 2 3 . 9 . . . . . . . . . Specialist 2 | . . . . . . . . . 2 . . . . . Hunter 4 | . . . . . . 1 3 . . . . . . . Programmer 8 | . . . . . 5 . 3 . . . . . . . Best Kill Streak 7 | 3 3 3 6 . 7 3 6 . 6 . . . . 1 Combat Bots Only 6 | . 2 3 3 . 5 3 4 . 6 . . . . 1 Max Kills in Single Turn 4 | 1 1 1 2 . 2 2 2 . 4 . . . . 1 Gunslinging 1 | . . . . . . 1 1 . . . . . . . Exploded 4 | . . . . . . . . . 4 . . . . . Melee 1 | . . . . . . . 1 . . . . . . 1 Uniques/NPCs Destroyed . | . . . . . . . . . . . . . . . Combat | -11 -10 -9 -8 -7 -7 -7 -6 -5 -5 -4 -4 -4 -3 -3 -------- Run | Yrd Mat Mat Mat Fac Sto Gar Fac Fac DSF Fac Gar Ext Res Gar Hostile Shots Fired 1261 | . 29 13 48 18 377 21 158 . 208 6 75 35 142 131 Missed 437 | . 9 2 14 10 108 6 41 . 73 5 33 15 75 46 Damage Taken 13350 | . 192 145 536 59 2870 340 1981 . 2911 25 804 606 1206 1675 Core 3643 | . 30 13 81 . 290 18 179 . 969 25 565 158 150 1165 Absorbed by Shields 242 | . . . . . . . . . 35 . 56 . . 151 Redirected to Shielding 231 | . . . . . . . . . 89 . 123 19 . . Core Remaining (%) 67 | 100 88 96 85 . . 56 78 . 3 . . 34 . . Volleys Fired 351 | 26 32 42 59 . 111 22 50 . 6 . . . 2 1 Largest 3 | 2 2 2 2 . 2 2 3 . 3 . . . 1 1 Hottest 240 | 60 60 124 128 . 160 160 240 . 117 . . . 20 7 Shots Fired 668 | 28 56 81 118 . 214 41 116 . 11 . . . 2 1 Gun 487 | 28 56 63 . . 194 40 106 . . . . . . . Cannon 155 | . . 18 118 . 19 . . . . . . . . . Launcher 14 | . . . . . 1 1 1 . 11 . . . . . Special 12 | . . . . . . . 9 . . . . . 2 1 Kinetic 228 | 26 25 61 . . 116 . . . . . . . . . Thermal 383 | . . 20 118 . 97 40 106 . . . . . 2 . Explosive 14 | . . . . . 1 1 1 . 11 . . . . . Electromagnetic 33 | 2 31 . . . . . . . . . . . . . Robot Hit Streak 32 | 6 6 11 12 . 32 18 28 . 14 . . . . . Robot Miss Streak 7 | 2 5 3 4 . 7 2 3 . 2 . . . . . Penetration Max . | . . . . . . . . . . . . . . . Secondary Targets 6 | . . . . . 1 2 3 . . . . . . . Max Gunslinging Chain 2 | . . . . . 1 1 2 . . . . . . . Shots Hit Robots 502 | 19 28 50 80 . 182 31 108 . 4 . . . . . Core Hits 365 | 8 16 16 37 . 142 34 91 . 20 . . . . 1 Critical Kills 2 | . . . 1 . 1 . . . . . . . . . Critical Parts Destroyed 7 | . . . . . 3 . 4 . . . . . . . Critical Strikes 10 | . . 1 1 . 4 . 4 . . . . . . . Burn 1 | . . 1 . . . . . . . . . . . . Meltdown 1 | . . . 1 . . . . . . . . . . . Destroy 4 | . . . . . 4 . . . . . . . . . Smash 4 | . . . . . . . 4 . . . . . . . Melee Attacks 38 | . . 2 2 . 1 12 8 . . . . 1 11 1 Impact 35 | . . 2 2 . 1 12 8 . . . . . 10 . Slashing 1 | . . . . . . . . . . . . 1 . . Piercing 2 | . . . . . . . . . . . . . 1 1 Sneak Attacks 1 | . . . . . . . 1 . . . . . . . Combat Hostiles . | . . . . . . . . . . . . . . . Follow-up Attacks . | . . . . . . . . . . . . . . . Damage Inflicted 11553 | 234 411 737 1794 . 3649 885 2924 . 901 . . . . 18 Guns 7755 | 234 359 592 . . 3266 779 2525 . . . . . . . Cannons 2239 | . . 145 1794 . 300 . . . . . . . . . Explosions 1190 | . 52 . . . 83 106 48 . 901 . . . . . Melee 351 | . . . . . . . 351 . . . . . . . Ramming 18 | . . . . . . . . . . . . . . 18 Kinetic 2649 | 206 153 577 . . 1713 . . . . . . . . . Thermal 7128 | . 17 160 1794 . 1853 779 2525 . . . . . . . Explosive 1138 | . . . . . 83 106 48 . 901 . . . . . Electromagnetic 269 | 28 241 . . . . . . . . . . . . . Impact 351 | . . . . . . . 351 . . . . . . . Slashing . | . . . . . . . . . . . . . . . Piercing . | . . . . . . . . . . . . . . . Highest Corruption 5 | . . . . . 5 5 4 . . 1 1 1 . . Average Corruption 3 | . . . . . 3 5 2 . . 1 1 1 . . Corruption Purged . | . . . . . . . . . . . . . . . Corruption Blocked . | . . . . . . . . . . . . . . . Effects 72 | . . . . . 27 30 13 . . . 1 1 . . Message Errors 13 | . . . . . 3 6 4 . . . . . . . Matter Fused 18 | . . . . . 7 9 2 . . . . . . . Heat Flow Errors 8 | . . . . . 3 1 2 . . . 1 1 . . Energy Discharges 7 | . . . . . 1 4 2 . . . . . . . Data Loss (minor) 14 | . . . . . 5 6 3 . . . . . . . Data Loss (major) 6 | . . . . . 4 2 . . . . . . . . Misfires 2 | . . . . . 1 1 . . . . . . . . Alerts 1 | . . . . . 1 . . . . . . . . . Weapon Failures 3 | . . . . . 2 1 . . . . . . . . Overload Shots . | . . . . . . . . . . . . . . . Overflow Damage 318 | . . . 5 . . . 289 . 24 . . . . . Projectiles 24 | . . . 5 . . . 19 . . . . . . . Explosions 24 | . . . . . . . . . 24 . . . . . Melee 270 | . . . . . . . 270 . . . . . . . Knockbacks 2 | . . . . . . . 2 . . . . . . . Impact 1 | . . . . . . . 1 . . . . . . . Kinetic . | . . . . . . . . . . . . . . . Secondary 1 | . . . . . . . 1 . . . . . . . Self-Inflicted Damage 126 | . . . . . 19 64 . . 34 . . . . 9 Shots 3 | . . . . . 1 1 . . 1 . . . . . Rammed 1 | . . . . . . . . . . . . . . 1 Targets Rammed 1 | . . . . . . . . . . . . . . 1 Kicked . | . . . . . . . . . . . . . . . Crushed . | . . . . . . . . . . . . . . . Highest Temperature 353 | . 24 138 210 . 165 205 353 . . . 132 97 182 . Average Temperature 49 | . 14 49 44 . 30 65 70 . . . 74 97 81 . Received Heat Transfer 1985 | . 60 69 333 18 741 135 351 . 63 . 54 54 54 53 Effects 1 | . . . . . . . 1 . . . . . . . Energy Bleed 1 | . . . . . . . 1 . . . . . . . Siege Activations . | . . . . . . . . . . . . . . . Robots Corrupted 2 | . . . . . . . 2 . . . . . . . Combat Hostiles 1 | . . . . . . . 1 . . . . . . . Parts Fried 7 | . 1 . . . . . 6 . . . . . . . Impact Corruptions 9 | . . . . . . . 9 . . . . . . . Robots Melted 2 | . . . 1 . 1 . . . . . . . . . Combat Hostiles 2 | . . . 1 . 1 . . . . . . . . . Parts Melted 33 | . . . 7 . 10 2 14 . . . . . . . Heat Transferred 14447 | . 50 370 3034 . 3593 1775 5625 . . . . . . . Parts Sabotaged 2 | . . . . . . . 2 . . . . . . . Parts Stolen . | . . . . . . . . . . . . . . . Parts Stripped . | . . . . . . . . . . . . . . . Power Chain Reactions 1 | . 1 . . . . . . . . . . . . . Alert | -11 -10 -9 -8 -7 -7 -7 -6 -5 -5 -4 -4 -4 -3 -3 ------- Run | Yrd Mat Mat Mat Fac Sto Gar Fac Fac DSF Fac Gar Ext Res Gar Peak Influence 1433 | 40 186 158 474 230 773 1433 842 287 512 186 175 156 563 374 Initial 751 | . 26 78 34 215 104 502 751 287 200 142 140 96 72 279 Average 408 | 19 76 85 264 218 396 961 659 287 295 166 153 135 247 315 Maximum Alert Level 4 | . . . 2 1 3 4 3 1 2 . . . 2 1 Low Security (%) 38 | 100 100 100 35 . 9 . . . 30 100 100 100 53 . Level 1 16 | . . . 45 100 43 . . 100 41 . . . 24 100 Level 2 26 | . . . 18 . 43 20 68 . 27 . . . 22 . Level 3 13 | . . . . . 3 52 31 . . . . . . . Level 4 4 | . . . . . . 27 . . . . . . . . Level 5 . | . . . . . . . . . . . . . . . High Security . | . . . . . . . . . . . . . . . Max Security . | . . . . . . . . . . . . . . . Squads Dispatched 42 | . 4 . 5 . 11 . 11 . 4 1 . 3 3 . Investigation 14 | . 1 . 4 . 3 . 2 . . 1 . 1 2 . Extermination 7 | . . . . . 4 . 3 . . . . . . . Reinforcement 16 | . 3 . 1 . 2 . 3 . 4 . . 2 1 . Assault 1 | . . . . . . . 1 . . . . . . . Garrison 4 | . . . . . 2 . 2 . . . . . . . Intercept . | . . . . . . . . . . . . . . . Searches Triggered 1 | . . . . . . . . . . . . . 1 . Construction Impeded 1 | . . . 1 . . . . . . . . . . . Haulers Reinforced 3 | . . . . . 1 . 2 . . . . . . . Active Scanning Responses . | . . . . . . . . . . . . . . . Cargo Convoy Interrupts 1 | . . . . . . . 1 . . . . . . . Stealth | -11 -10 -9 -8 -7 -7 -7 -6 -5 -5 -4 -4 -4 -3 -3 --------- Run | Yrd Mat Mat Mat Fac Sto Gar Fac Fac DSF Fac Gar Ext Res Gar Distress Signals 19 | . 1 . 3 . 2 1 3 . . 1 . 5 3 . Communications Jammed . | . . . . . . . . . . . . . . . Distress Signals . | . . . . . . . . . . . . . . . Times Spotted 265 | . 14 12 25 2 41 24 33 . 23 6 17 9 37 22 Peak Tracking Total 19 | . 3 3 4 3 5 6 5 . 8 5 12 7 15 19 Tactical Retreats 25 | . . . 3 . 3 2 . . 6 . 2 2 6 1 Traps | -11 -10 -9 -8 -7 -7 -7 -6 -5 -5 -4 -4 -4 -3 -3 ------- Run | Yrd Mat Mat Mat Fac Sto Gar Fac Fac DSF Fac Gar Ext Res Gar Traps Triggered 16 | . . . 2 . 3 1 . . 3 . 1 2 . 4 Indirectly . | . . . . . . . . . . . . . . . Trap Hack Attempts . | . . . . . . . . . . . . . . . Triggered . | . . . . . . . . . . . . . . . Disarmed . | . . . . . . . . . . . . . . . Reprogrammed . | . . . . . . . . . . . . . . . Reused . | . . . . . . . . . . . . . . . Traps Extracted . | . . . . . . . . . . . . . . . Installed . | . . . . . . . . . . . . . . . Triggered 1 | . . . . . . . 1 . . . . . . . Machines | -11 -10 -9 -8 -7 -7 -7 -6 -5 -5 -4 -4 -4 -3 -3 ---------- Run | Yrd Mat Mat Mat Fac Sto Gar Fac Fac DSF Fac Gar Ext Res Gar Machines Disabled 15 | . 2 5 . . 1 5 . . . . . 1 . 1 Max in Single Turn 2 | . 1 1 . . 1 2 . . . . . 1 . 1 Garrison Access 1 | . . . . . . . 1 . . . . . . . Garrison Relay 4 | . . . . . . 3 . . . . . . . 1 Phase Generator 2 | . . . . . . 1 . . . . . . . 1 Machines Repaired . | . . . . . . . . . . . . . . . Machines Dismantled . | . . . . . . . . . . . . . . . Machines Sabotaged . | . . . . . . . . . . . . . . . Overloaded Fab Kills . | . . . . . . . . . . . . . . . Hacking | -11 -10 -9 -8 -7 -7 -7 -6 -5 -5 -4 -4 -4 -3 -3 --------- Run | Yrd Mat Mat Mat Fac Sto Gar Fac Fac DSF Fac Gar Ext Res Gar Machines Accessed 53 | . 4 6 7 1 10 3 8 1 . 3 . 4 6 . Terminals 39 | . 3 6 4 . 9 3 4 1 . . . 4 5 . Fabricators 3 | . . . . 1 . . 2 . . . . . . . Repair Stations 2 | . . . . . . . 1 . . 1 . . . . Recycling Units 3 | . 1 . 1 . . . . . . 1 . . . . Scanalyzers 3 | . . . 2 . . . 1 . . . . . . . Garrison Access 3 | . . . . . 1 . . . . 1 . . 1 . Total Hacks 127 | . 8 18 25 1 19 4 20 1 . 7 . 9 15 . Successful 66 | . 5 10 20 . 8 3 8 1 . 4 . 3 4 . Failed 61 | . 3 8 5 1 11 1 12 . . 3 . 6 11 . Catastrophic 12 | . 1 2 1 . 3 . 2 . . . . . 3 . Database Lockouts . | . . . . . . . . . . . . . . . Manual 26 | . 5 6 7 . 2 . 4 . . . . . 2 . Terminals 87 | . 5 18 13 . 16 4 7 1 . . . 9 14 . Fabricators 6 | . . . . 1 . . 5 . . . . . . . Repair Stations 4 | . . . . . . . 1 . . 3 . . . . Recycling Units 7 | . 3 . 1 . . . . . . 3 . . . . Scanalyzers 18 | . . . 11 . . . 7 . . . . . . . Garrison Access 5 | . . . . . 3 . . . . 1 . . 1 . Terminal Hacks 34 | . 1 8 6 . 7 3 2 1 . . . 3 3 . Record 7 | . 1 2 3 . 1 . . . . . . . . . Part Schematic 1 | . . . . . 1 . . . . . . . . . Prototype ID Bank 5 | . . 2 1 . 2 . . . . . . . . . Open Door 4 | . . . . . 2 . . . . . . 2 . . Open DSF 2 | . . . . . . . 1 1 . . . . . . Branch Access Points 1 | . . . . . . . . . . . . 1 . . Emergency Access Points 3 | . . . . . . 1 . . . . . . 2 . Alert Level 2 | . . 1 1 . . . . . . . . . . . Unreport Threat 1 | . . . . . . . 1 . . . . . . . Locate Traps 2 | . . 1 . . 1 . . . . . . . . . Surveillance Status 1 | . . 1 . . . . . . . . . . . . Recall Investigation 1 | . . . 1 . . . . . . . . . . . Hauler Manifests 1 | . . 1 . . . . . . . . . . . . Zone Layout 1 | . . . . . . . . . . . . . 1 . Garrison Registry 1 | . . . . . . 1 . . . . . . . . Security Stations 1 | . . . . . . 1 . . . . . . . . Fabricator Hacks 3 | . . . . . . . 3 . . . . . . . Network Status 2 | . . . . . . . 2 . . . . . . . Load Schematic 1 | . . . . . . . 1 . . . . . . . Repair Station Hacks 2 | . . . . . . . . . . 2 . . . . Scan Component 1 | . . . . . . . . . . 1 . . . . Refit 1 | . . . . . . . . . . 1 . . . . Recycling Unit Hacks 1 | . . . . . . . . . . 1 . . . . Retrieve Matter 1 | . . . . . . . . . . 1 . . . . Scanalyzer 14 | . . . 11 . . . 3 . . . . . . . Insert Component 7 | . . . 5 . . . 2 . . . . . . . Analyze 7 | . . . 6 . . . 1 . . . . . . . Garrison Access Hacks 3 | . . . . . 1 . . . . 1 . . 1 . Unlock Access 3 | . . . . . 1 . . . . 1 . . 1 . Unauthorized Hacks 7 | . 2 2 3 . . . . . . . . . . . Terminals 5 | . 1 2 2 . . . . . . . . . . . Botnet 5 | . 1 2 2 . . . . . . . . . . . Fabricators . | . . . . . . . . . . . . . . . Repair Stations . | . . . . . . . . . . . . . . . Recycling Units 2 | . 1 . 1 . . . . . . . . . . . Tunnel 2 | . 1 . 1 . . . . . . . . . . . Scanalyzers . | . . . . . . . . . . . . . . . Garrison Access . | . . . . . . . . . . . . . . . Data Cores Recovered 1 | . . . . . 1 . . . . . . . . . Used 1 | . . . . . 1 . . . . . . . . . Hacking Detections 41 | . 3 6 6 1 7 1 7 1 . 2 . 2 5 . Full Trace Events 11 | . . . 2 . 3 . 2 . . 1 . 1 2 . Feedback Events 1 | . . . . . . . . . . 1 . . . . Corruption 1 | . . . . . . . . . . 1 . . . . Feedback Blocked . | . . . . . . . . . . . . . . . Robot Schematics Acquired . | . . . . . . . . . . . . . . . Robots Built . | . . . . . . . . . . . . . . . Authchips . | . . . . . . . . . . . . . . . Time . | . . . . . . . . . . . . . . . Total Robot Build Rating . | . . . . . . . . . . . . . . . Part Schematics Acquired 7 | . . . 5 . 1 . 1 . . . . . . . Parts Built . | . . . . . . . . . . . . . . . Authchips . | . . . . . . . . . . . . . . . Time . | . . . . . . . . . . . . . . . Total Part Build Rating . | . . . . . . . . . . . . . . . Parts Repaired . | . . . . . . . . . . . . . . . Time . | . . . . . . . . . . . . . . . Parts Recycled . | . . . . . . . . . . . . . . . Recycled Matter . | . . . . . . . . . . . . . . . Retrieved Matter . | . . . . . . . . . . . . . . . Retrieved Components . | . . . . . . . . . . . . . . . Parts Scanalyzed 7 | . . . 5 . . . 2 . . . . . . . Part Schematics Acquired 6 | . . . 5 . . . 1 . . . . . . . Parts Damaged . | . . . . . . . . . . . . . . . Bothacking | -11 -10 -9 -8 -7 -7 -7 -6 -5 -5 -4 -4 -4 -3 -3 ------------ Run | Yrd Mat Mat Mat Fac Sto Gar Fac Fac DSF Fac Gar Ext Res Gar Used RIF Installer 1 | . . . . . . 1 . . . . . . . . Robots Hacked 3 | . . . . . . . 3 . . . . . . . Non-combat . | . . . . . . . . . . . . . . . Combat 3 | . . . . . . . 3 . . . . . . . Robot Hacks Applied 7 | . . . . . . . 7 . . . . . . . parse_system 1 | . . . . . . . 1 . . . . . . . find_shortcuts 1 | . . . . . . . 1 . . . . . . . find_garrison 1 | . . . . . . . 1 . . . . . . . focus_fire 1 | . . . . . . . 1 . . . . . . . reboot_system 1 | . . . . . . . 1 . . . . . . . go_dormant 1 | . . . . . . . 1 . . . . . . . formatsys_high 1 | . . . . . . . 1 . . . . . . . Relay Couplers Released 21 | . . . . . . 12 4 . . . . . . 5 Machine Destruction 17 | . . . . . . 12 . . . . . . . 5 Programmers 4 | . . . . . . . 4 . . . . . . . Attached 1 | . . . . . . . 1 . . . . . . . Fabnet Peak Effective % . | . . . . . . . . . . . . . . . Robots Rewired 1 | . . . . . . . 1 . . . . . . . Allies Hacked . | . . . . . . . . . . . . . . . Hacks Repelled . | . . . . . . . . . . . . . . . Allies | -11 -10 -9 -8 -7 -7 -7 -6 -5 -5 -4 -4 -4 -3 -3 -------- Run | Yrd Mat Mat Mat Fac Sto Gar Fac Fac DSF Fac Gar Ext Res Gar Total Allies 14 | . . . . . 10 2 2 . . . . . . . Largest Group 10 | . . . . . 10 7 3 . . . . . . . Highest-Rated Group 189 | . . . . . 173 160 189 . . . . . . . Highest-Rated Ally 80 | . . . . . 29 80 80 . . . . . . . Total Orders 7 | . . . . . 5 . . . . . . 2 . . FOLLOW 4 | . . . . . 4 . . . . . . . . . GUARD 1 | . . . . . 1 . . . . . . . . . EXPLORE 2 | . . . . . . . . . . . . 2 . . Ally Attacks 125 | . . . . . 27 70 28 . . . . . . . Total Damage 1803 | . . . . . 294 790 719 . . . . . . . Kills 22 | . . . . . 5 11 6 . . . . . . . Allies Corrupted . | . . . . . . . . . . . . . . . Allies Melted . | . . . . . . . . . . . . . . . Intel | -11 -10 -9 -8 -7 -7 -7 -6 -5 -5 -4 -4 -4 -3 -3 ------- Run | Yrd Mat Mat Mat Fac Sto Gar Fac Fac DSF Fac Gar Ext Res Gar Robot Analysis Total . | . . . . . . . . . . . . . . . Derelict Logs Recovered . | . . . . . . . . . . . . . . . Drone Launches 5 | . . . . . . . . . 2 . . 3 . . Drone Recoveries 2 | . . . . . . . . . . . . 2 . . Exploration | -11 -10 -9 -8 -7 -7 -7 -6 -5 -5 -4 -4 -4 -3 -3 ------------- Run | Yrd Mat Mat Mat Fac Sto Gar Fac Fac DSF Fac Gar Ext Res Gar Turns Passed 8279 | 225 607 1121 773 33 1547 1213 1424 3 493 61 96 345 255 83 Spaces Moved 4528 | 102 228 386 262 20 633 658 578 3 315 157 229 372 424 161 Core 104 | 5 . . . . . . . . 3 1 61 . . 34 Treads 2403 | 97 228 386 262 20 490 658 238 . . . . 24 . . Legs 33 | . . . . . . . 33 . . . . . . . Wheels 612 | . . . . . 143 . 307 3 159 . . . . . Hover 456 | . . . . . . . . . . . . 348 108 . Flight 920 | . . . . . . . . . 153 156 168 . 316 127 Fastest Speed 28 | 50 160 240 160 160 110 155 130 130 28 32 32 60 35 35 Average Speed 134 | 157 169 240 182 160 153 155 192 130 110 32 37 71 41 38 Slowest Speed 400 | 160 240 240 240 160 240 235 400 130 205 50 70 240 112 50 Overloaded Moves . | . . . . . . . . . . . . . . . Propulsion Burnouts . | . . . . . . . . . . . . . . . Robots Hopped 12 | . . . . . . . . . 5 1 3 . 2 1 Cave-ins Triggered . | . . . . . . . . . . . . . . . Exploration Rate (%) 37 | 6 47 40 31 1 83 68 16 . 94 6 44 38 16 41 Regions Visited 14 Branch Regions 2 Pre-discovered Areas 3 | . 1 . 1 . 1 . . . . . . . . . Known Exits Taken 6 | . . . 1 1 1 . . 1 . 1 . . 1 . Unknown Exits Taken 5 | 1 1 1 . . . . 1 . . . . 1 . . Scrap Searched . | . . . . . . . . . . . . . . . Spaces Dug 79 | . . 2 2 . 16 1 5 . 42 . . . 11 . Terrain Destroyed 280 | . 2 2 9 . 18 101 5 . 132 . . . 11 . Melee 16 | . . 2 2 . . 1 . . . . . . 11 . Projectile 9 | . . . 7 . 2 . . . . . . . . . AOE 255 | . 2 . . . 16 100 5 . 132 . . . . . Terrain Rammed . | . . . . . . . . . . . . . . . Walls Destroyed . | . . . . . . . . . . . . . . . Machines Disabled . | . . . . . . . . . . . . . . . Actions | -11 -10 -9 -8 -7 -7 -7 -6 -5 -5 -4 -4 -4 -3 -3 --------- Run | Yrd Mat Mat Mat Fac Sto Gar Fac Fac DSF Fac Gar Ext Res Gar Total 5950 | 135 391 492 432 21 997 770 760 2 439 169 237 449 477 179 Wait 533 | . 116 36 74 . 136 61 49 . 21 . . 32 6 2 Move 4494 | 101 227 385 261 19 632 657 577 2 305 155 223 371 420 159 Hop 10 | . . . . . . . . . 4 1 2 . 2 1 Pick Up 94 | 1 6 8 6 . 25 4 16 . 17 5 . 2 2 2 Fast Attach 86 | 7 1 2 6 . 17 1 6 . 19 . . 7 19 1 Attach 63 | . . 3 2 2 10 3 15 . 12 3 1 5 5 2 Detach 14 | . . . 2 . 1 . 4 . 2 . 1 2 2 . Swap 81 | . 7 12 12 . 18 8 19 . 5 . . . . . Drop 87 | . 2 2 8 . 30 2 16 . 10 5 2 3 7 . Fire 351 | 26 32 42 59 . 111 22 50 . 6 . . . 2 1 Melee 38 | . . 2 2 . 1 12 8 . . . . 1 11 1 Ram 1 | . . . . . . . . . . . . . . 1 Kick . | . . . . . . . . . . . . . . . Crush . | . . . . . . . . . . . . . . . Escape Stasis 97 | . . . . . 16 . . . 38 . 8 26 . 9 Rewire . | . . . . . . . . . . . . . . . Trap . | . . . . . . . . . . . . . . . Miscellaneous 1 | . . . . . . . . . . . . . 1 . Route ------- -11/Scrapyard -10/Materials (discovered 4 exits: *Mat x2 / [*Min x2]) -9/Materials -8/Materials -7/Factory -7/Storage (discovered 2 exits: *Fac / Gar) -7/Garrison (discovered 3 exits: *Fac x3) -6/Factory -5/Factory -5/DSF -4/Factory -4/Garrison -4/Extension (discovered 2 exits: *Res / Cet) -3/Research -3/Garrison (discovered 1 exit: [*Res]) History --------- Turn | Location | Event 8 | -11/Scrapyard | Discovered new exit (range 15) 226 | -11/Scrapyard | Entered Materials 302 | -10/Materials | Build established: Mutant 387 | -10/Materials | Discovered new exit (range 16) 418 | -10/Materials | Discovered new exit (range 5) 602 | -10/Materials | Discovered new exit (range 16) 750 | -10/Materials | Discovered new exit (range 8) 833 | -10/Materials | Entered another Materials area 833 | -9/Materials | Evolved 2 slots: Utility x2 1609 | -9/Materials | Discovered new exit (range 3) 1619 | -9/Materials | Build established: Scavenger-Mutant 1954 | -9/Materials | Entered another Materials area 1954 | -8/Materials | Evolved 2 slots: Propulsion x1, Utility x1 2679 | -8/Materials | Discovered new exit (range 16) 2722 | -8/Materials | Identified exit to Factory 2727 | -8/Materials | Entered Factory 2727 | -7/Factory | Evolved 2 slots: Propulsion x1, Utility x1 2737 | -7/Factory | Discovered new exit (range 11) 2758 | -7/Factory | Identified exit to Storage 2760 | -7/Factory | Entered Storage 2766 | -7/Storage | Learned location of Armory (-3) 2899 | -7/Storage | Lost 6 parts (3n1u2w) 3098 | -7/Storage | Lost 5 parts (1p2n1u1w) 3978 | -7/Storage | Assisted by bots powering up and referring to "LRC-V3" 4135 | -7/Storage | Garrison activated, responded to threat 4244 | -7/Storage | Identified exit to Garrison 4268 | -7/Storage | Discovered new exit (range 16) 4276 | -7/Storage | Build established: Commander-Mutant 4304 | -7/Storage | Lost 3 allies 4307 | -7/Storage | Entered Garrison 4307 | -7/Garrison | Accompanied by 7 allies 4336 | -7/Garrison | Learned Factory security intel 4355 | -7/Garrison | Triggered checkpoint 4584 | -7/Garrison | Garrison Relay disabled 4597 | -7/Garrison | Triggered checkpoint 4659 | -7/Garrison | Build established: Scavenger-Mutant 4665 | -7/Garrison | Triggered checkpoint 4677 | -7/Garrison | Triggered checkpoint 4718 | -7/Garrison | Lost 4 allies 4754 | -7/Garrison | Triggered checkpoint 5020 | -7/Garrison | Discovered new exit (range 65) 5020 | -7/Garrison | Discovered new exit (range 72) 5020 | -7/Garrison | Discovered new exit (range 37) 5044 | -7/Garrison | Garrison Relay disabled 5108 | -7/Garrison | Found embedded Infiltrators 5144 | -7/Garrison | Identified exit to Factory 5160 | -7/Garrison | Installed Relay Interface Framework 5185 | -7/Garrison | Phase Generator disabled 5396 | -7/Garrison | Garrison Relay disabled 5520 | -7/Garrison | Entered Factory 5520 | -6/Factory | Accompanied by 2 allies 5520 | -6/Factory | Evolved 2 slots: Utility x1, Weapon x1 5817 | -6/Factory | Build established: Scavenger-Tank 6153 | -6/Factory | Lost 4 parts (3n1w) 6686 | -6/Factory | Lost 3 parts (2u1w) 6758 | -6/Factory | Cargo convoy interrupted 6760 | -6/Factory | Garrison activated, responded to threat 6913 | -6/Factory | Discovered new exit (range 4) 6944 | -6/Factory | Entered another Factory area 6944 | -5/Factory | Evolved 2 slots: Propulsion x2 6947 | -5/Factory | Identified exit to DSF 6947 | -5/Factory | Entered DSF 6969 | -5/DSF | Lost 3 parts (1p1n1w) 7064 | -5/DSF | Additional patrols routed to DSF 7233 | -5/DSF | Build established: Hacker-Gunner 7322 | -5/DSF | Discovered new exit (range 16) 7347 | -5/DSF | Lost 14 parts (8n2u4w) 7364 | -5/DSF | Core integrity fell below 50% 7424 | -5/DSF | Lost 6 parts (2n4u) 7430 | -5/DSF | Core integrity fell below 20% 7440 | -5/DSF | Entered Factory 7440 | -4/Factory | Evolved 2 slots: Power x1, Utility x1 7471 | -4/Factory | Lost 8 parts (1p3n3u1w) 7501 | -4/Factory | Identified exit to Garrison 7501 | -4/Factory | Entered Garrison 7517 | -4/Garrison | Triggered checkpoint 7525 | -4/Garrison | Spotted B-75 Beast 7529 | -4/Garrison | Spotted B-86 Titan 7569 | -4/Garrison | Spotted B-86 Titan 7573 | -4/Garrison | Triggered checkpoint 7591 | -4/Garrison | Core integrity fell below 50% 7593 | -4/Garrison | Discovered new exit (range 8) 7597 | -4/Garrison | Entered Extension 7607 | -4/Extension | Lost 5 parts (1p2n2u) 7637 | -4/Extension | Rescued a captive Derelict 7643 | -4/Extension | Spotted B-86 Titan 7666 | -4/Extension | Identified exit to Cetus 7706 | -4/Extension | Disrupted transfer network 7737 | -4/Extension | Warlord forces began an assault 7778 | -4/Extension | Lost 4 allies 7837 | -4/Extension | Build established: Mutant 7850 | -4/Extension | Spotted B-86 Titan 7941 | -4/Extension | Discovered new exit (range 3) 7942 | -4/Extension | Entered Research 7942 | -3/Research | Evolved 2 slots: Propulsion x1, Utility x1 7961 | -3/Research | Lost 4 allies 8117 | -3/Research | Found Prototype Processor 8117 | -3/Research | Identified Spectral Analyzer 8160 | -3/Research | Lost 5 parts (3n2u) 8192 | -3/Research | Search patrols dispatched 8197 | -3/Research | Identified exit to Garrison 8197 | -3/Research | Entered Garrison 8208 | -3/Garrison | Phase Generator disabled 8213 | -3/Garrison | Met a derelict Sapper fleeing the area 8217 | -3/Garrison | Triggered checkpoint 8219 | -3/Garrison | Garrison Relay disabled 8234 | -3/Garrison | Spotted B-86 Titan 8245 | -3/Garrison | Spotted B-86 Titan 8249 | -3/Garrison | Triggered checkpoint 8250 | -3/Garrison | Triggered checkpoint 8250 | -3/Garrison | Triggered checkpoint 8257 | -3/Garrison | Triggered checkpoint 8261 | -3/Garrison | Core integrity fell below 50% 8268 | -3/Garrison | Core integrity fell below 20% 8276 | -3/Garrison | Discovered new exit (range 15) 8280 | -3/Garrison | Destroyed by S-43 Plague with Heavy Machine Gun Last Messages --------------- 08257_ Impulse Thruster Array destroyed. 08257_ Field strength at 51. 08258_ Slug penetrates Wall. 08258_ Field strength at 27. 08259_ Field strength at 15. 08260_ Field strength at 3. 08260_ Stasis field depleted. 08260_ Slug penetrates Reinforced Barrier. 08260_ Knocked back. 08264_ Slammed into S-43 Plague. 08264_ S-43 Plague destroyed. [Achievement: Fist Fight] 08264_ Destabilizing: System corrupted (+1). 08265_ Acquired 33 matter. 08265_ Acquired Xenon Bombardment Thruster. 08266_ Xenon Bombardment Thruster destroyed. 08267_ Slug penetrates Wall. 08267_ Penetrated by Slug. 08276_ EXIT=FOUND 08277_ System Shield destroyed. Map ----- +----------------------------------------------------+ | ??????????????????????? | | ## ### ## #### #### #??????????????????????? | | ?# #?# ## #??# #??# #??????????????????????? | | ?# #?# ## ## #??# #??# #??????????????????????? | | ?# ### ## #??# #??# #??????????????????????? | | ?# ##### #??# #??# #??????????????????????? | | ?# #####???# #??# #??# #??????????????????????? | | ?# #???????# =#### #### ##"""#######???????????? | | ?# #???????# ???????????? | | ?# #???????# = ???????????? | | ?# #???????#### ## ####sss#####??????????????????? | | ? #??????????# ## #??# #??????????????????????? | | ?###??????????# ## "??# #??????????????????????? | | ??????????????# ## T??# #??????????????????????? | | ??????????????# ##""#?# #??????????????????????? | | ??????????????# #####?# #??????????????????????? | | ??????????????# #?????# #??????????????????????? | | ??????????????# #?????# #??????????????????????? | | ??????????????? ??????# #??????????????????????? | | ??????????????? ??????# #??????????????????????? | | ??????????????? ??????# #??????????????????????? | | ??????????????? ??????# #??????????????????????? | | ??????????????? ??????# #??????????????????????? | | ??????????????? ??????# #??????????????????????? | | ??????????????? ??????# #??????????????????????? | | ??????????????????????# @#??????????????????????? | | ??????????????????????# #??????????????????????? | | ??????????????????????# #??????????????????????? | | ??????????????????????# #??????????????????????? | | ??????????????????????# #??????????????????????? | | ??????????????????????# ??????????????????????? | | ??????????????????????